Workbook

Sheet Version (hidden)
A1: Service | B1: =MID(CELL("dateiname"),FIND("[",CELL("dateiname"))+1,FIND("]",CELL("dateiname"))-FIND("[",CELL("dateiname"))-1) -> 660_Auslegungstool_LBQ_201030.xlsm
A2: Version: | B2: 1.0

Sheet Hinweise zum Programm
A1: Hinweise zur Bedienung
A3: Allgemeine Hinweise:
A4: Das Auslegungstool LBQ dient als Hilfsmittel zur Technischen Planung des Bodenquelldurchlasses emcoair LBQ.
A6: Auslegung:
A7: Im Tabellenblatt "Auslegung" erfolgt die Festlegung des gewünschten Auslasstyps. Bei Eingabe der Vorgabedaten, wie z.B. dem benötigten Luftvolumenstrom werden die technischen Daten des gewählten Luftdurchlasses berechnet.
A9: Hinweise zur Funktion:
A10: Für eine ordnungsgemäße Funktion des Auslegungstools muss die Ausführung von Makros und MS Excel aktiviert sein. Die Aktivierung von Makros erfolgt im Menü Makrosicherheit.
A11: Einstellung unter MS Excel 97-2003: Extras → Makro → Sicherheit
A12: Einstellung unter MS Excel 2007: Entwicklertools* → Makrosicherheit
A13: *Das Menü Entwicklertools muss unter Umständen eingefügt werden unter Excel-Optionen

Sheet Auslegung
A1: Auslegung Boden-Quellluftdurchlass - Kampmann LBQ
A3: Eingabefelder sind gelb gekennzeichnet
A4: Ergebnisfelder sind blau gekennzeichnet
A6: Vorgaben
A7: Position | B7: Symbol | C7: Einheit | D7: Wert
A8: Bezeichung | B8: Symbol | C8: Einheit | D8: LBQ
B9: L | C9: mm | D9: LBQ
B10: L | C10: mm
B11: L | C11: mm
A12: Nenngröße | B12: B | C12: mm | D12: 150
A13: Nennlänge | B13: L | C13: mm | D13: 1000
A14: Nennlänge | B14: L | C14: mm | D14: 600
A15: Luftvolumenstrom Zuluft | B15: V· | C15: m³/h | D15: 150
A16: Anzahl Stutzen | B16: n | C16: - | D16: 1
D17: =IF(AND(D13>1000,D21=2),2,1) -> 1
D18: =IF(OR(D13<=1000,D12="600x600"),2,1) -> 2
D19: =IF(D13>1500,3,"") -> 
D20: =IF(D13>1500,4,"") -> 
D21: =IF(D12="600x600",1,2) -> 2
A22: Anströmgeschwindigkeit im Stutzen | B22: v | C22: m/s | D22: =Grunddaten!I22 -> 5.30516477
A23: Temperatur Zuluft | B23: tSUP | C23: °C | D23: 24
A24: Temperatur Raum | B24: tRaum | C24: °C | D24: 26
A26: Raumdaten
A27: Raumhöhe | B27: H1 | C27: m | D27: 3
A28: Obergrenze Aufenthaltsbereich | B28: H2 | C28: m | D28: 1.8
A29: Raumlänge | B29: LR | C29: m | D29: 5
A30: Raumbreite | B30: BR | C30: m | D30: 3 | G30: 1 | H30: Sichtbare Länge | I30: =Grunddaten!$N$22 -> 1020 | J30: mm
A31: Raumart nach VDI 2081 | D31: Einzelbüro | G31: 2 | H31: Sichtbare Breite | I31: =Grunddaten!$O$22 -> 170 | J31: mm
C32: Einzelbüro
C33: Großraumbüro
C34: Werkstätten
C35: Ruheraum, Pausenraum
C36: Untersuchungsraum Krankenhaus
C37: Rundfunk-, Fernsehstudio
C38: Chemielabor
C39: Wasch- und WC-Raum, Umkleide
C40: Schwimmbad
C41: EDV-Raum
C42: Konzertsaal
C43: Lesesaal
C44: Museum
C45: Küche
C46: Theater, Kino
C47: Klassen- Seminarraum
C48: Gaststätte
C49: kein Typ
C50: Konferenzraum
C51: Hotelzimmer
C52: Hörsaal
C53: Bettenzimmer Krankenhaus
C54: Verkaufsraum
C55: Sporthalle
A56: Abstand zur Schallquelle | B56: r | C56: m | D56: 3 | G56: 3 | H56: Länge Anschlusskasten | I56: =Grunddaten!$K$22 -> 1000 | J56: mm
A57: Zusatzdaten | G57: 4 | H57: Höhe Anschlusskasten | I57: =Grunddaten!$M$22 -> 160 | J57: mm
A58: Blendrahmenprofil | B58: Z Profil | E58: =VLOOKUP(B58,B59:E60,4,0) -> Z | G58: 5 | H58: Gesamthöhe | I58: =Grunddaten!$M$22 -> 160 | J58: mm
B59: Z Profil | E59: Z | J59: mm
B60: L Profil | E60: L | J60: mm
A61: Werkstoff Luftdurchlass | B61: Stahl verzinkt | E61: =VLOOKUP(B61,B62:E64,4,0) -> V | G61: 6 | H61: Stutzendurchmesser | I61: =Grunddaten!$P$22 -> 98 | J61: mm
B62: Stahl verzinkt | E62: V
E63: E
E64: S
A65: Farbe Luftdurchlass / Blendrahmen (RAL, matt) | B65: 7012 | E65: =B65 -> 7012 | G65: 7 | H65: Stutzenabstand | I65: =Grunddaten!$Q$22 -> 498.25 | J65: mm
A66: Anschlusskasten | B66: mit | E66: =VLOOKUP(B66,B67:E68,4,0) -> 1
B67: mit | E67: 1
B68: ohne | E68: 0
A69: Werkstoff Anschlusskasten | B69: Stahl verzinkt | E69: =VLOOKUP(B69,B70:E73,4,0) -> V
B70: Stahl verzinkt | E70: V
A74: Drossel im Anschlusskasten (selbsthemmend) | B74: ohne | E74: =VLOOKUP(B74,B75:E76,4,0) -> 0
B75: mit | E75: 1
B76: ohne | E76: 0
A77: integrierte Höhenverstellung | B77: mit | E77: =VLOOKUP(B77,B78:E79,4,0) -> 1
B78: mit | E78: 1
B79: ohne | E79: 0
A80: Ausführung | B80: Einzelposition | E80: =VLOOKUP(B80,B81:E84,4,0) -> 1
B81: Einzelposition | E81: 1
B82: Bandanfang | E82: 2
B83: Bandmitte | E83: 3
B84: Bandende | E84: 4
A85: Merkmalschlüssel | B85: =CONCATENATE(1,"LBQ",$D$12,$E$85,$D$16,$E$58,$E$61,$E$65,$E$66,$E$69,$E$74,$E$77,$E$80,) -> 1LBQ15010001ZV70121V011 | E85: =IF($D$13<1000,CONCATENATE("0",D13),D13) -> 1000
A86: Brutto-Listenpreis | B86: Preis auf Anfrage
A87: =IF(B68="frontseitig bedienbare Drossel*","*Preis für Anschlusskasten mit Mengeneinstellung auf Anfrage","") -> 
A88: Berechnung | D88: =IF(D12=500,"Zuluft/Abluft","Zuluft") -> Zuluft
A89: Druckverlust | B89: Dpt | C89: Pa | D89: =Grunddaten!$J$22 -> 35.89240457
A90: Austrittsgeschwindigkeit | B90: v0 | C90: m/s | D90: =Grunddaten!$F$22 -> 0.2777777778
A91: Schallleistungspegel | B91: LWA | C91: dB(A) | D91: =Lw!I61 -> 37.56495306
D92: =IF(D91="<25",0,D91) -> 37.56495306
A94: Schallldruckpegel im Raum | B94: LPA | C94: dB(A) | D94: =IF(D92+10*LOG(Lw!$F$69/(4*PI()*Auslegung!D56^2)+4/(Lw!$H$69))>=25,D92+10*LOG(Lw!$F$69/(4*PI()*Auslegung!D56^2)+4/(Lw!$H$69)),"<25") -> 32.45092648
A97: Oktavspektrum Schallleistung | B97: LW_Okt | C97: dB | D97: =D88 -> Zuluft
B98: LW_125 | C98: dB | D98: =Lw!B$62 -> 37.47328883
B99: LW_250 | C99: dB | D99: =Lw!C$62 -> 36.18211414
B100: LW_500 | C100: dB | D100: =Lw!D$62 -> 36.74125319
B101: LW_1000 | C101: dB | D101: =Lw!E$62 -> 32.03177745
B102: LW_2000 | C102: dB | D102: =Lw!F$62 -> 27.57659935
B103: LW_4000 | C103: dB | D103: =Lw!G$62 -> 23.12095126
B104: LW_8000 | C104: dB | D104: =Lw!H$62 -> 22.1882891
D105: =Grunddaten!F23 -> 189
A106: Durchgangsdämpfungsmaß | B106: Dt | C106: dB
B107: Dt_63 | C107: dB | D107: =Dt!D$12 -> 0
B108: Dt_125 | C108: dB | D108: =Dt!E$12 -> 0
B109: Dt_250 | C109: dB | D109: =Dt!F$12 -> 0
B110: Dt_500 | C110: dB | D110: =Dt!G$12 -> 0
B111: Dt_1000 | C111: dB | D111: =Dt!H$12 -> 0
B112: Dt_2000 | C112: dB | D112: =Dt!I$12 -> 0
B113: Dt_4000 | C113: dB | D113: =Dt!J$12 -> 0
B114: Dt_8000 | C114: dB | D114: =Dt!K$12 -> 0
A116: Änderungen vorbehalten
A117: Stand:
A118: =Grunddaten!D25 -> 2020-10-30

Sheet Bauakustik (hidden)
A1: Bauakustik - resultierendes Schalldämm-Maß
A3: Erläuterung:
A4: Aus den Einzahlangaben der bewerteten Schalldämm-Maße nach DIN EN ISO 717-1 und den Flächenanteilen der Einzelelemente wird das resultierende Schalldämm-Maß R´W,R,res nach DIN 4109 berechnet.
A6: Eingabefelder sind gelb gekennzeichnet
A7: Ergebnisfelder sind blau gekennzeichnet
A9: Vorgaben KSW
A10: Position | B10: Symbol | C10: Einheit | D10: Wert
A11: gewählter Luftdurchlass | D11: =Auslegung!#REF! -> 
A12: aktive Länge | B12: L | C12: mm | D12: =Auslegung!D12 -> 150
A13: Schlitzanzahl | B13: n | C13: [-] | D13: =Auslegung!D13 -> 1000
A14: Breite Anschlusskasten | B14: bAK | C14: m | D14: =Auslegung!I30/1000 -> 1.02
A15: Höhe Anschlusskasten | B15: hAK | C15: m | D15: =Auslegung!I56/1000 -> 1
A16: Bezugsfläche KSW für die Berechnung | B16: SAK | C16: m² | D16: =D14*D15 -> 1.02
A17: Abluft an Kanal angeschlossen? | D17: ja
D18: ja
D19: nein
A20: Schalldämm-Maß emcoair KSW | B20: RW_AK | C20: dB | D20: =IF(D17="ja",Grunddaten!S22,Grunddaten!U22) -> 0
A22: Vorgaben Trennwand
A23: Position | B23: Symbol | C23: Einheit | D23: Wert
A24: Breite Trennwand | B24: bE1 | C24: m | D24: 5
A25: Höhe Trennwand | B25: hE1 | C25: m | D25: 3
A26: Fläche Trennwand exklusive Einbauten | B26: SE1 | C26: m² | D26: =D24*D25-D33-D16 -> 13.98
A27: Schalldämm-Maß der Trennwand | B27: RW_E1 | C27: dB | D27: 40
A29: Vorgaben weitere Bauteile im System (Tür, Fenster, …)
A30: Position | B30: Symbol | C30: Einheit | D30: Wert
A31: Breite Element | B31: bE2 | C31: m | D31: 0
A32: Höhe Element | B32: hE2 | C32: m | D32: 0
A33: Fläche Element | B33: SE2 | C33: m² | D33: =D31*D32 -> 0
A34: Schalldämm-Maß Element | B34: RW_E2 | C34: dB | D34: 0
A36: resultierendes Schalldämmmaß des Gesamtsystems | B36: R´W,R,res | C36: dB | D36: =-10*LOG(1/(D33+D26+D16)*($D$16*10^(-0.1*$D$20)+$D$26*10^(-0.1*$D$27)+$D$33*10^(-0.1*$D$34))) -> 11.66896256
D52: technische Änderungen vorbehalten
C53: Stand: | D53: =Grunddaten!$D$25 -> 2020-10-30

Sheet Funktion (hidden)

Sheet Maße (hidden)

Sheet Datenblatt
A2: Typ | B2: =Auslegung!$D$8 -> LBQ | I2: =TODAY() -> 2021-01-04
A3: Projekt
A4: Bearbeiter
A10: Nenngröße: | B10: =Auslegung!D12 -> 150 | D10: integrierte Höhenverstellung: | G10: =Auslegung!B77 -> mit
A11: Nennlänge: | B11: =Auslegung!D13 -> 1000 | D11: Ausführung: | G11: =Auslegung!B80 -> Einzelposition
A12: Blendrahmen: | B12: =Auslegung!B58 -> Z Profil | D12: Anschlusskasten: | G12: =Auslegung!B66 -> mit
A13: Drossel im AK: | B13: =Auslegung!B74 -> ohne
A15: Beschreibung: Linearer Bodenquellluftdurchlass für turbulenzarme Zulufteinbringung in Komfortbereiche. Perforiertes Ausblasfeld mit innen liegendem Luftverteilmechanismus zur gleichmäßigen Luftverteilung. Variable Baulängen von 500-2000 mm Baubreiten 100 mm, 150 mm oder quadratisch 600 x 600 mm Höhenverstellbarer Anschlusskasten (Stellfuß)
A18: technische Vorgaben | F18: Raumdaten
A19: Luftvolumenstrom | B19: V·SUP | C19: =Auslegung!D15 -> 150 | D19: m³/h | F19: Raumhöhe | G19: =Auslegung!D27 -> 3 | H19: m
A20: Temperatur Zuluft | B20: tZUL | C20: =Auslegung!D23 -> 24 | D20: °C | F20: Raumbreite | G20: =Auslegung!D30 -> 3 | H20: m
A21: Temperatur Raum | B21: tRAUM | C21: =Auslegung!D24 -> 26 | D21: °C | F21: Raumlänge | G21: =Auslegung!D29 -> 5 | H21: m
F22: Nutzungsart | G22: =Auslegung!D31 -> Einzelbüro
A24: technische Daten | C24: =IF(B10=500,"Zuluft/Abluft","Zuluft") -> Zuluft
A25: Druckverlust | B25: Dp | C25: =Auslegung!D89 -> 35.89240457 | D25: Pa
A26: =Auslegung!A90 -> Austrittsgeschwindigkeit | B26: v0 | C26: =Auslegung!D90 -> 0.2777777778 | D26: m
A27: Schallleistungspegel | B27: LWA | C27: =Auslegung!D91 -> 37.56495306 | D27: dB(A)
A28: =CONCATENATE("Schalldruckpegel in ",Auslegung!D56," m Abstand") -> Schalldruckpegel in 3 m Abstand | B28: LPA | C28: =Auslegung!D94 -> 32.45092648 | D28: dB(A)
A32: Oktavspektrum | B32: f [Hz] | C32: 125 | D32: 250 | E32: 500 | F32: 1000 | G32: 2000 | H32: 4000 | I32: 8000
B33: LW_Okt | C33: =Auslegung!D98 -> 37.47328883 | D33: =Auslegung!D99 -> 36.18211414 | E33: =Auslegung!D100 -> 36.74125319 | F33: =Auslegung!D101 -> 32.03177745 | G33: =Auslegung!D102 -> 27.57659935 | H33: =Auslegung!D103 -> 23.12095126 | I33: =Auslegung!D104 -> 22.1882891
E45: 1 | F45: Sichtbare Länge | H45: =Grunddaten!$N$22 -> 1020 | I45: mm
E46: 2 | F46: Sichtbare Breite | H46: =Grunddaten!$O$22 -> 170 | I46: mm
E47: 3 | F47: Länge Anschlusskasten | H47: =Grunddaten!$K$22 -> 1000 | I47: mm
E48: 4 | F48: Höhe Anschlusskasten | H48: =Grunddaten!$M$22 -> 160 | I48: mm
E49: 5 | F49: Gesamthöhe | H49: =Grunddaten!$M$22 -> 160 | I49: mm
E50: 6 | F50: Stutzendurchmesser | H50: =Grunddaten!$P$22 -> 98 | I50: mm
E51: 7 | F51: Stutzenabstand | H51: =Grunddaten!$Q$22 -> 498.25 | I51: mm
E80: 7 | F80: Stutzenabstand | G80: =Grunddaten!$Q$22 -> 498.25 | H80: mm

Sheet Grunddaten (hidden)
A1: Typ | D1: Nennbreite | E1: spez.Volumenstrom | F1: Austrittsgeschwindigkeit | G1: Durchmesser Anschluss | H1: Anzahl Stutzen | I1: Anströmgeschwindigkeit | J1: Druckverlust | K1: Länge AK | L1: Breite AK | M1: Höhe AK | N1: Sichtlänge | O1: Sichtbreite | P1: Durchmesser Stutzen | Q1: Abstand Stutzen | V1: Identnummer | W1: Bruttopreis
D2: l | E2: V°spez | F2: v_in | G2: d | H2: n | I2: v | J2: Dp | K2: L_AK | L2: B_AK | M2: H_AK | N2: L | O2: B | P2: D | Q2: x
D3: mm | E3: m³/(h·Walze) | F3: m/s | G3: mm | H3: - | I3: m/s | J3: Pa | K3: mm | L3: mm | M3: mm | N3: mm | O3: mm | P3: mm | Q3: mm
A4: LBQ | B4: ZUL | C4: =CONCATENATE(A4,D4) -> LBQ100 | D4: 100 | E4: =Auslegung!$D$15/Auslegung!$D$13*1000 -> 150 | F4: =Auslegung!$D$15/(D4*Auslegung!$D$13*10^-6)/3600 -> 0.4166666667 | G4: 100 | H4: =Auslegung!$D$16 -> 1 | I4: =Auslegung!$D$15/(PI()/4*(Grunddaten!G4/1000)^2*3600)/H4 -> 5.30516477 | J4: =Dp!F5 -> 41.6948141 | K4: =Auslegung!$D$13 -> 1000 | L4: 100 | M4: 160 | N4: =K4+20 -> 1020 | O4: 120 | P4: =G4-2 -> 98 | Q4: =(K4-3.5)/(Auslegung!$D$16+1) -> 498.25
A5: LBQ | B5: ZUL | C5: =CONCATENATE(A5,D5) -> LBQ150 | D5: 150 | E5: =Auslegung!$D$15/Auslegung!$D$13*1000 -> 150 | F5: =Auslegung!$D$15/(D5*Auslegung!$D$13*10^-6)/3600 -> 0.2777777778 | G5: 100 | H5: =Auslegung!$D$16 -> 1 | I5: =Auslegung!$D$15/(PI()/4*(Grunddaten!G5/1000)^2*3600)/H5 -> 5.30516477 | J5: =Dp!F6 -> 35.89240457 | K5: =Auslegung!$D$13 -> 1000 | L5: 150 | M5: 160 | N5: 1020 | O5: 170 | P5: =G5-2 -> 98 | Q5: =(K5-3.5)/(Auslegung!$D$16+1) -> 498.25
A6: LBQ | B6: ZUL | C6: LBQ600x600 | D6: 600x600 | E6: =Auslegung!$D$15/Auslegung!$D$13*1000 -> 150 | F6: =Auslegung!D15/(0.6*0.6)/3600 -> 0.1157407407 | G6: 100 | H6: =Auslegung!$D$16 -> 1 | I6: =Auslegung!$D$15/(PI()/4*(Grunddaten!G6/1000)^2*3600)/H6 -> 5.30516477 | J6: =Dp!F7 -> 34.01276731 | K6: 600 | L6: 600 | M6: 160 | N6: 620 | O6: 620 | P6: 98 | Q6: =(K6-3.5)/(Auslegung!$D$16+1) -> 298.25
D20: 2 | E20: 3 | F20: 4 | G20: 5 | H20: 6 | I20: 7 | J20: 8 | K20: 9 | L20: 10 | M20: 11 | N20: 12 | O20: 13 | P20: 14 | Q20: 15 | R20: 16 | S20: 17 | T20: 18 | U20: 19 | V20: 20 | W20: 21
F21: 0.35
A22: Auswahl: | B22: Zuluft | C22: =CONCATENATE(Auslegung!D8,Auslegung!$D$12) -> LBQ150 | D22: =VLOOKUP($C$22,$C$4:$J$19,D20,FALSE) -> 150 | E22: =VLOOKUP($C$22,$C$4:$J$19,E20,FALSE) -> 150 | F22: =VLOOKUP($C$22,$C$4:$J$19,F20,FALSE) -> 0.2777777778 | G22: =VLOOKUP($C$22,$C$4:$J$19,G20,FALSE) -> 100 | I22: =VLOOKUP($C$22,$C$4:$J$19,I20,FALSE) -> 5.30516477 | J22: =VLOOKUP($C$22,$C$4:$J$19,J20,FALSE) -> 35.89240457 | K22: =VLOOKUP($C$22,$C$4:$K$19,K20,FALSE) -> 1000 | L22: =VLOOKUP($C$22,$C$4:$N$19,L20,FALSE) -> 150 | M22: =VLOOKUP($C$22,$C$4:$N$19,M20,FALSE) -> 160 | N22: =VLOOKUP($C$22,$C$4:$N$19,N20,FALSE) -> 1020 | O22: =VLOOKUP($C$22,$C$4:$O$19,O20,FALSE) -> 170 | P22: =VLOOKUP($C$22,$C$4:$U$19,P20,FALSE) -> 98 | Q22: 498.25 | R22: 0 | S22: 0 | T22: 0 | U22: 0 | V22: =VLOOKUP($C$22,$C$4:$V$19,V20,FALSE) -> 0 | W22: =VLOOKUP($C$22,$C$4:$W$19,W20,FALSE) -> 0
F23: =IF(D22="600x600",(F21*3600*0.6^2),F21*3600*(D22*Auslegung!$D$13*10^-6)) -> 189
P24: offen | R24: geschlossen | T24: ZUL geschlossen, ABL offen
C25: Stand: | D25: 2020-10-30
E31: 1
E32: 2
E33: 3
E34: 4

Sheet Lw (hidden)
A2: Hz | B2: 100 | C2: 125 | D2: 160 | E2: 200 | F2: 250 | G2: 315 | H2: 400 | I2: 500 | J2: 630 | K2: 800 | L2: 1000 | M2: 1250 | N2: 1600 | O2: 2000 | P2: 2500 | Q2: 3150 | R2: 4000 | S2: 5000 | T2: 6300 | U2: 8000 | V2: 10000 | AA2: Konstanten Berechnung Dp
A3: K1 | B3: 50.0946169 | C3: 0.3485711662 | D3: -33.88563751 | E3: -95.58993049 | F3: -26.13776045 | G3: 0.2979290772 | H3: 17.74087299 | I3: 36.8476753 | J3: 15.19875708 | K3: -3.904818362 | L3: 17.57367486 | M3: 25.17970643 | N3: 40.43051979 | O3: 40.97199018 | P3: 49.61445705 | Q3: 50.37111251 | R3: 56.98133394 | S3: 58.49899443 | T3: 42.61102241 | U3: 25.39671607 | V3: 22.02889511 | AA3: K011 | AB3: 0.0001568395946
A4: K2 | B4: -57.70765711 | C4: -23.81859748 | D4: 15.9744918 | E4: 46.18673741 | F4: -5.71903764 | G4: -21.61615815 | H4: -39.89428612 | I4: -52.22689311 | J4: -42.79050751 | K4: -30.9474551 | L4: -45.50145496 | M4: -57.36221365 | N4: -72.08149564 | O4: -68.94342251 | P4: -70.32110946 | Q4: -66.06886912 | R4: -61.77391216 | S4: -52.99221625 | T4: -36.92823806 | U4: -21.64020858 | V4: -15.25108056 | AA4: K012 | AB4: 2.140652136
A5: K3 | B5: -122.194655 | C5: -60.65560152 | D5: 38.02414501 | E5: 106.2763122 | F5: -8.801213865 | G5: -27.90503569 | H5: -82.72416775 | I5: -112.1490811 | J5: -82.17738934 | K5: -43.69405442 | L5: -55.07042132 | M5: -95.70506714 | N5: -138.6050385 | O5: -130.6773906 | P5: -134.1672523 | Q5: -133.793964 | R5: -129.72608 | S5: -116.1685924 | T5: -92.16763748 | U5: -65.73604601 | V5: -48.03458212 | AA5: K013 | AB5: 0.9851855498
A6: K4 | B6: 106.3207007 | C6: 59.66519962 | D6: -7.728324655 | E6: -49.84343157 | F6: 32.01049007 | G6: 50.9860184 | H6: 87.08388493 | I6: 107.6969513 | J6: 89.70750537 | K6: 70.50866396 | L6: 86.55920878 | M6: 114.5303548 | N6: 143.9067798 | O6: 136.7580879 | P6: 134.401134 | Q6: 127.1428711 | R6: 115.7589885 | S6: 95.93883074 | T6: 69.12410201 | U6: 44.75469141 | V6: 31.30969509 | AA6: K014 | AB6: 2.021740655
A7: K5 | B7: 4.959417848 | C7: 6.116986458 | D7: 0.4242401327 | E7: 4.769620721 | F7: 5.178795178 | G7: 4.5297998 | H7: 7.473273607 | I7: 6.660847829 | J7: 8.664278609 | K7: 7.189732664 | L7: 4.733615667 | M7: 5.511230372 | N7: 6.162148202 | O7: 5.002241909 | P7: 4.586398571 | Q7: 4.481871812 | R7: 3.540590775 | S7: 3.091540794 | T7: 4.450770012 | U7: 5.234303178 | V7: 4.648031737
A8: Hz | B8: 100 | C8: 125 | D8: 160 | E8: 200 | F8: 250 | G8: 315 | H8: 400 | I8: 500 | J8: 630 | K8: 800 | L8: 1000 | M8: 1250 | N8: 1600 | O8: 2000 | P8: 2500 | Q8: 3150 | R8: 4000 | S8: 5000 | T8: 6300 | U8: 8000 | V8: 10000
A9: K1 | B9: -7.434172359 | C9: -8.995068791 | D9: -9.329423229 | E9: -9.526275963 | F9: -9.384215011 | G9: -10.49654251 | H9: -13.18058456 | I9: -15.1744071 | J9: -18.03078227 | K9: -19.41727663 | L9: -19.27030002 | M9: -19.13727955 | N9: -19.60231386 | O9: -17.32332239 | P9: -15.09112131 | Q9: -11.42280492 | R9: -5.546688767 | S9: -0.2491927159 | T9: 3.563009948 | U9: 5.759758598 | V9: 6.617419891
A10: K2 | B10: -4.209447917 | C10: -5.355736123 | D10: -5.201000942 | E10: -4.46656642 | F10: -3.730732333 | G10: -4.266681149 | H10: -5.869923123 | I10: -7.154313454 | J10: -9.555506061 | K10: -10.7591909 | L10: -11.02987876 | M10: -11.30908505 | N10: -11.61065319 | O10: -10.33942548 | P10: -8.86488288 | Q10: -6.344321255 | R10: -2.185409638 | S10: 1.731381622 | T10: 4.707725191 | U10: 6.431311573 | V10: 7.141684955
A11: K3 | B11: 8.031974697 | C11: 9.151163901 | D11: 9.791208919 | E11: 10.81141904 | F11: 11.34111297 | G11: 12.41961078 | H11: 14.71199993 | I11: 16.32144798 | J11: 18.06596165 | K11: 18.87461633 | L11: 18.39057693 | M11: 17.918279 | N11: 18.29166027 | O11: 16.25514318 | P11: 14.48986677 | Q11: 11.68624055 | R11: 7.316573526 | S11: 3.544611495 | T11: 0.9879597243 | U11: -0.476795861 | V11: -1.011219515
A12: K4 | B12: 14.74271661 | C12: 16.91546589 | D12: 18.1950804 | E12: 20.25705205 | F12: 21.34384035 | G12: 23.46359999 | H12: 27.94800947 | I12: 31.08917609 | J12: 34.44780318 | K12: 36.00052213 | L12: 35.02577834 | M12: 34.07398332 | N12: 34.8025504 | O12: 30.81168249 | P12: 27.36939448 | Q12: 21.91049544 | R12: 13.41290927 | S12: 6.092627233 | T12: 1.145612401 | U12: -1.6877907 | V12: -2.717845518
B20: 2 | C20: 3 | D20: 4 | E20: 5 | F20: 6 | G20: 7 | H20: 8 | I20: 9 | J20: 10 | K20: 11 | L20: 12 | M20: 13 | N20: 14 | O20: 15 | P20: 16 | Q20: 17 | R20: 18 | S20: 19 | T20: 20 | U20: 21 | V20: 22
B22: Terzfrequenzband fm [Hz]
B23: 100 | C23: 125 | D23: 160 | E23: 200 | F23: 250 | G23: 315 | H23: 400 | I23: 500 | J23: 630 | K23: 800 | L23: 1000 | M23: 1250 | N23: 1600 | O23: 2000 | P23: 2500 | Q23: 3150 | R23: 4000 | S23: 5000 | T23: 6300 | U23: 8000 | V23: 10000
A24: =Grunddaten!C4 -> LBQ100 | B24: =B25+1.5 -> 17.67037413 | C24: =C25+1.5 -> 17.19058028 | D24: 19.18752547 | E24: 20.23714794 | F24: 21.85164129 | G24: 27.40923649 | H24: 30.31263855 | I24: 30.87445452 | J24: 29.51708178 | K24: 29.7960135 | L24: 28.94952173 | M24: 27.12562547 | N24: 26.88954619 | O24: 25.40895474 | P24: 23.61175073 | Q24: 22.29199323 | R24: 20.67061435 | S24: 18.95559667 | T24: 17.79848824 | U24: 17.4633776 | V24: 18.16129534 | W24: =10*LOG(10^(0.1*B24)+10^(0.1*C24)+10^(0.1*D24)+10^(0.1*E24)+10^(0.1*F24)+10^(0.1*G24)+10^(0.1*H24)+10^(0.1*I24)+10^(0.1*J24)+10^(0.1*K24)+10^(0.1*L24)+10^(0.1*M24)+10^(0.1*N24)+10^(0.1*O24)+10^(0.1*P24)+10^(0.1*Q24)+10^(0.1*R24)+10^(0.1*S24)+10^(0.1*T24)+10^(0.1*U24)+10^(0.1*V24)) -> 39.06495306
A25: =Grunddaten!C5 -> LBQ150 | B25: =B$3+B$4*LOG(Grunddaten!$E$5)+Lw!B$5*LOG(Grunddaten!$I$5)+Lw!B$6*LOG(Grunddaten!$J$5)+Lw!B$7*LOG(Auslegung!$D$13) -> 16.17037413 | C25: =C$3+C$4*LOG(Grunddaten!$E$5)+Lw!C$5*LOG(Grunddaten!$I$5)+Lw!C$6*LOG(Grunddaten!$J$5)+Lw!C$7*LOG(Auslegung!$D$13) -> 15.69058028 | D25: =D$3+D$4*LOG(Grunddaten!$E$5)+Lw!D$5*LOG(Grunddaten!$I$5)+Lw!D$6*LOG(Grunddaten!$J$5)+Lw!D$7*LOG(Auslegung!$D$13) -> 17.68752547 | E25: =E$3+E$4*LOG(Grunddaten!$E$5)+Lw!E$5*LOG(Grunddaten!$I$5)+Lw!E$6*LOG(Grunddaten!$J$5)+Lw!E$7*LOG(Auslegung!$D$13) -> 18.73714794 | F25: =F$3+F$4*LOG(Grunddaten!$E$5)+Lw!F$5*LOG(Grunddaten!$I$5)+Lw!F$6*LOG(Grunddaten!$J$5)+Lw!F$7*LOG(Auslegung!$D$13) -> 20.35164129 | G25: =G$3+G$4*LOG(Grunddaten!$E$5)+Lw!G$5*LOG(Grunddaten!$I$5)+Lw!G$6*LOG(Grunddaten!$J$5)+Lw!G$7*LOG(Auslegung!$D$13) -> 25.90923649 | H25: =H$3+H$4*LOG(Grunddaten!$E$5)+Lw!H$5*LOG(Grunddaten!$I$5)+Lw!H$6*LOG(Grunddaten!$J$5)+Lw!H$7*LOG(Auslegung!$D$13) -> 28.81263855 | I25: =I$3+I$4*LOG(Grunddaten!$E$5)+Lw!I$5*LOG(Grunddaten!$I$5)+Lw!I$6*LOG(Grunddaten!$J$5)+Lw!I$7*LOG(Auslegung!$D$13) -> 29.37445452 | J25: =J$3+J$4*LOG(Grunddaten!$E$5)+Lw!J$5*LOG(Grunddaten!$I$5)+Lw!J$6*LOG(Grunddaten!$J$5)+Lw!J$7*LOG(Auslegung!$D$13) -> 28.01708178 | K25: =K$3+K$4*LOG(Grunddaten!$E$5)+Lw!K$5*LOG(Grunddaten!$I$5)+Lw!K$6*LOG(Grunddaten!$J$5)+Lw!K$7*LOG(Auslegung!$D$13) -> 28.2960135 | L25: =L$3+L$4*LOG(Grunddaten!$E$5)+Lw!L$5*LOG(Grunddaten!$I$5)+Lw!L$6*LOG(Grunddaten!$J$5)+Lw!L$7*LOG(Auslegung!$D$13) -> 27.44952173 | M25: =M$3+M$4*LOG(Grunddaten!$E$5)+Lw!M$5*LOG(Grunddaten!$I$5)+Lw!M$6*LOG(Grunddaten!$J$5)+Lw!M$7*LOG(Auslegung!$D$13) -> 25.62562547 | N25: =N$3+N$4*LOG(Grunddaten!$E$5)+Lw!N$5*LOG(Grunddaten!$I$5)+Lw!N$6*LOG(Grunddaten!$J$5)+Lw!N$7*LOG(Auslegung!$D$13) -> 25.38954619 | O25: =O$3+O$4*LOG(Grunddaten!$E$5)+Lw!O$5*LOG(Grunddaten!$I$5)+Lw!O$6*LOG(Grunddaten!$J$5)+Lw!O$7*LOG(Auslegung!$D$13) -> 23.90895474 | P25: =P$3+P$4*LOG(Grunddaten!$E$5)+Lw!P$5*LOG(Grunddaten!$I$5)+Lw!P$6*LOG(Grunddaten!$J$5)+Lw!P$7*LOG(Auslegung!$D$13) -> 22.11175073 | Q25: =Q$3+Q$4*LOG(Grunddaten!$E$5)+Lw!Q$5*LOG(Grunddaten!$I$5)+Lw!Q$6*LOG(Grunddaten!$J$5)+Lw!Q$7*LOG(Auslegung!$D$13) -> 20.79199323 | R25: =R$3+R$4*LOG(Grunddaten!$E$5)+Lw!R$5*LOG(Grunddaten!$I$5)+Lw!R$6*LOG(Grunddaten!$J$5)+Lw!R$7*LOG(Auslegung!$D$13) -> 19.17061435 | S25: =S$3+S$4*LOG(Grunddaten!$E$5)+Lw!S$5*LOG(Grunddaten!$I$5)+Lw!S$6*LOG(Grunddaten!$J$5)+Lw!S$7*LOG(Auslegung!$D$13) -> 17.45559667 | T25: =T$3+T$4*LOG(Grunddaten!$E$5)+Lw!T$5*LOG(Grunddaten!$I$5)+Lw!T$6*LOG(Grunddaten!$J$5)+Lw!T$7*LOG(Auslegung!$D$13) -> 16.29848824 | U25: =U$3+U$4*LOG(Grunddaten!$E$5)+Lw!U$5*LOG(Grunddaten!$I$5)+Lw!U$6*LOG(Grunddaten!$J$5)+Lw!U$7*LOG(Auslegung!$D$13) -> 15.9633776 | V25: =V$3+V$4*LOG(Grunddaten!$E$5)+Lw!V$5*LOG(Grunddaten!$I$5)+Lw!V$6*LOG(Grunddaten!$J$5)+Lw!V$7*LOG(Auslegung!$D$13) -> 16.66129534 | W25: =10*LOG(10^(0.1*B25)+10^(0.1*C25)+10^(0.1*D25)+10^(0.1*E25)+10^(0.1*F25)+10^(0.1*G25)+10^(0.1*H25)+10^(0.1*I25)+10^(0.1*J25)+10^(0.1*K25)+10^(0.1*L25)+10^(0.1*M25)+10^(0.1*N25)+10^(0.1*O25)+10^(0.1*P25)+10^(0.1*Q25)+10^(0.1*R25)+10^(0.1*S25)+10^(0.1*T25)+10^(0.1*U25)+10^(0.1*V25)) -> 37.56495306
A26: =Grunddaten!C6 -> LBQ600x600 | B26: =B$9+B$10*LOG(Auslegung!$D$15)+B$11*LOG(Grunddaten!$I$6)+B$12*LOG(Grunddaten!$J$6) -> 11.80701135 | C26: =C$9+C$10*LOG(Auslegung!$D$15)+C$11*LOG(Grunddaten!$I$6)+C$12*LOG(Grunddaten!$J$6) -> 11.89063632 | D26: =D$9+D$10*LOG(Auslegung!$D$15)+D$11*LOG(Grunddaten!$I$6)+D$12*LOG(Grunddaten!$J$6) -> 14.31675093 | E26: =E$9+E$10*LOG(Auslegung!$D$15)+E$11*LOG(Grunddaten!$I$6)+E$12*LOG(Grunddaten!$J$6) -> 19.6156422 | F26: =F$9+F$10*LOG(Auslegung!$D$15)+F$11*LOG(Grunddaten!$I$6)+F$12*LOG(Grunddaten!$J$6) -> 23.40738444 | G26: =G$9+G$10*LOG(Auslegung!$D$15)+G$11*LOG(Grunddaten!$I$6)+G$12*LOG(Grunddaten!$J$6) -> 25.15708239 | H26: =H$9+H$10*LOG(Auslegung!$D$15)+H$11*LOG(Grunddaten!$I$6)+H$12*LOG(Grunddaten!$J$6) -> 27.51404109 | I26: =I$9+I$10*LOG(Auslegung!$D$15)+I$11*LOG(Grunddaten!$I$6)+I$12*LOG(Grunddaten!$J$6) -> 28.7027758 | J26: =J$9+J$10*LOG(Auslegung!$D$15)+J$11*LOG(Grunddaten!$I$6)+J$12*LOG(Grunddaten!$J$6) -> 27.02964769 | K26: =K$9+K$10*LOG(Auslegung!$D$15)+K$11*LOG(Grunddaten!$I$6)+K$12*LOG(Grunddaten!$J$6) -> 25.98806591 | L26: =L$9+L$10*LOG(Auslegung!$D$15)+L$11*LOG(Grunddaten!$I$6)+L$12*LOG(Grunddaten!$J$6) -> 23.70225974 | M26: =M$9+M$10*LOG(Auslegung!$D$15)+M$11*LOG(Grunddaten!$I$6)+M$12*LOG(Grunddaten!$J$6) -> 21.42761886 | N26: =N$9+N$10*LOG(Auslegung!$D$15)+N$11*LOG(Grunddaten!$I$6)+N$12*LOG(Grunddaten!$J$6) -> 21.69283766 | O26: =O$9+O$10*LOG(Auslegung!$D$15)+O$11*LOG(Grunddaten!$I$6)+O$12*LOG(Grunddaten!$J$6) -> 19.14969422 | P26: =P$9+P$10*LOG(Auslegung!$D$15)+P$11*LOG(Grunddaten!$I$6)+P$12*LOG(Grunddaten!$J$6) -> 18.03898794 | Q26: =Q$9+Q$10*LOG(Auslegung!$D$15)+Q$11*LOG(Grunddaten!$I$6)+Q$12*LOG(Grunddaten!$J$6) -> 16.79941281 | R26: =R$9+R$10*LOG(Auslegung!$D$15)+R$11*LOG(Grunddaten!$I$6)+R$12*LOG(Grunddaten!$J$6) -> 15.54374779 | S26: =S$9+S$10*LOG(Auslegung!$D$15)+S$11*LOG(Grunddaten!$I$6)+S$12*LOG(Grunddaten!$J$6) -> 15.41895123 | T26: =T$9+T$10*LOG(Auslegung!$D$15)+T$11*LOG(Grunddaten!$I$6)+T$12*LOG(Grunddaten!$J$6) -> 16.27809092 | U26: =U$9+U$10*LOG(Auslegung!$D$15)+U$11*LOG(Grunddaten!$I$6)+U$12*LOG(Grunddaten!$J$6) -> 16.824255 | V26: =V$9+V$10*LOG(Auslegung!$D$15)+V$11*LOG(Grunddaten!$I$6)+V$12*LOG(Grunddaten!$J$6) -> 17.26278219 | W26: =10*LOG(10^(0.1*B26)+10^(0.1*C26)+10^(0.1*D26)+10^(0.1*E26)+10^(0.1*F26)+10^(0.1*G26)+10^(0.1*H26)+10^(0.1*I26)+10^(0.1*J26)+10^(0.1*K26)+10^(0.1*L26)+10^(0.1*M26)+10^(0.1*N26)+10^(0.1*O26)+10^(0.1*P26)+10^(0.1*Q26)+10^(0.1*R26)+10^(0.1*S26)+10^(0.1*T26)+10^(0.1*U26)+10^(0.1*V26)) -> 35.83553029
B41: Oktav-Frequenz fOkt [Hz] | I41: SLWA
B42: 125 | C42: 250 | D42: 500 | E42: 1000 | F42: 2000 | G42: 4000 | H42: 8000 | I42: Summe
A43: =A24 -> LBQ100 | B43: =10*LOG(10^(0.1*B24)+10^(0.1*C24)+10^(0.1*D24)) -> 22.87328883 | C43: =10*LOG(10^(0.1*E24)+10^(0.1*F24)+10^(0.1*G24)) -> 29.08211414 | D43: =10*LOG(10^(0.1*H24)+10^(0.1*I24)+10^(0.1*J24)) -> 35.04125319 | E43: =10*LOG(10^(0.1*K24)+10^(0.1*L24)+10^(0.1*M24)) -> 33.53177745 | F43: =10*LOG(10^(0.1*N24)+10^(0.1*O24)+10^(0.1*P24)) -> 30.27659935 | G43: =10*LOG(10^(0.1*Q24)+10^(0.1*R24)+10^(0.1*S24)) -> 25.62095126 | H43: =10*LOG(10^(0.1*T24)+10^(0.1*U24)+10^(0.1*V24)) -> 22.5882891 | I43: =10*LOG(10^(0.1*B43)+10^(0.1*C43)+10^(0.1*D43)+10^(0.1*E43)+10^(0.1*F43)+10^(0.1*G43)+10^(0.1*H43)) -> 39.06495306
A44: =A25 -> LBQ150 | B44: =10*LOG(10^(0.1*B25)+10^(0.1*C25)+10^(0.1*D25)) -> 21.37328883 | C44: =10*LOG(10^(0.1*E25)+10^(0.1*F25)+10^(0.1*G25)) -> 27.58211414 | D44: =10*LOG(10^(0.1*H25)+10^(0.1*I25)+10^(0.1*J25)) -> 33.54125319 | E44: =10*LOG(10^(0.1*K25)+10^(0.1*L25)+10^(0.1*M25)) -> 32.03177745 | F44: =10*LOG(10^(0.1*N25)+10^(0.1*O25)+10^(0.1*P25)) -> 28.77659935 | G44: =10*LOG(10^(0.1*Q25)+10^(0.1*R25)+10^(0.1*S25)) -> 24.12095126 | H44: =10*LOG(10^(0.1*T25)+10^(0.1*U25)+10^(0.1*V25)) -> 21.0882891 | I44: =10*LOG(10^(0.1*B44)+10^(0.1*C44)+10^(0.1*D44)+10^(0.1*E44)+10^(0.1*F44)+10^(0.1*G44)+10^(0.1*H44)) -> 37.56495306
A45: LBQ600x600 | B45: 17.60680558 | C45: 28.05197345 | D45: 32.57814582 | E45: 28.86760619 | F45: 24.67682524 | G45: 20.73800504 | H45: 21.57817135 | I45: 35.83553029
A46: 0 | B46: 4.771212547 | C46: 4.771212547 | D46: 4.771212547 | E46: 4.771212547 | F46: 4.771212547 | G46: 4.771212547 | H46: 4.771212547 | I46: 13.22219295
A47: 0 | B47: 4.771212547 | C47: 4.771212547 | D47: 4.771212547 | E47: 4.771212547 | F47: 4.771212547 | G47: 4.771212547 | H47: 4.771212547 | I47: 13.22219295
A48: 0 | B48: 4.771212547 | C48: 4.771212547 | D48: 4.771212547 | E48: 4.771212547 | F48: 4.771212547 | G48: 4.771212547 | H48: 4.771212547 | I48: 13.22219295
A49: 0 | B49: 4.771212547 | C49: 4.771212547 | D49: 4.771212547 | E49: 4.771212547 | F49: 4.771212547 | G49: 4.771212547 | H49: 4.771212547 | I49: 13.22219295
A50: 0 | B50: 4.771212547 | C50: 4.771212547 | D50: 4.771212547 | E50: 4.771212547 | F50: 4.771212547 | G50: 4.771212547 | H50: 4.771212547 | I50: 13.22219295
A51: 0 | B51: 4.771212547 | C51: 4.771212547 | D51: 4.771212547 | E51: 4.771212547 | F51: 4.771212547 | G51: 4.771212547 | H51: 4.771212547 | I51: 13.22219295
A52: 0 | B52: 4.771212547 | C52: 4.771212547 | D52: 4.771212547 | E52: 4.771212547 | F52: 4.771212547 | G52: 4.771212547 | H52: 4.771212547 | I52: 13.22219295
A53: 0 | B53: 4.771212547 | C53: 4.771212547 | D53: 4.771212547 | E53: 4.771212547 | F53: 4.771212547 | G53: 4.771212547 | H53: 4.771212547 | I53: 13.22219295
A54: 0 | B54: 4.771212547 | C54: 4.771212547 | D54: 4.771212547 | E54: 4.771212547 | F54: 4.771212547 | G54: 4.771212547 | H54: 4.771212547 | I54: 13.22219295
A55: 0 | B55: 4.771212547 | C55: 4.771212547 | D55: 4.771212547 | E55: 4.771212547 | F55: 4.771212547 | G55: 4.771212547 | H55: 4.771212547 | I55: 13.22219295
A56: 0 | B56: 4.771212547 | C56: 4.771212547 | D56: 4.771212547 | E56: 4.771212547 | F56: 4.771212547 | G56: 4.771212547 | H56: 4.771212547 | I56: 13.22219295
A57: 0 | B57: 4.771212547 | C57: 4.771212547 | D57: 4.771212547 | E57: 4.771212547 | F57: 4.771212547 | G57: 4.771212547 | H57: 4.771212547 | I57: 13.22219295
A58: =A39 -> 0 | B58: 4.771212547 | C58: 4.771212547 | D58: 4.771212547 | E58: 4.771212547 | F58: 4.771212547 | G58: 4.771212547 | H58: 4.771212547 | I58: 13.22219295
B59: 2 | C59: 3 | D59: 4 | E59: 5 | F59: 6 | G59: 7 | H59: 8 | I59: 9
A60: Auswahl: | B60: -16.1 | C60: -8.6 | D60: -3.2 | E60: 0 | F60: 1.2 | G60: 1 | H60: -1.1
A61: =Grunddaten!C22 -> LBQ150 | B61: =IF($I$61="<25","",VLOOKUP($A$61,$A$43:$I$58,B$59,FALSE)) -> 21.37328883 | C61: =IF($I$61="<25","",VLOOKUP($A$61,$A$43:$I$58,C$59,FALSE)) -> 27.58211414 | D61: 33.54125319 | E61: 32.03177745 | F61: 28.77659935 | G61: 24.12095126 | H61: 21.0882891 | I61: =IF(VLOOKUP($A$61,$A$43:$I$58,I$59,FALSE)<25,"<25",VLOOKUP($A$61,$A$43:$I$58,I$59,FALSE)) -> 37.56495306
B62: =B61-B60 -> 37.47328883 | C62: =C61-C60 -> 36.18211414 | D62: 36.74125319 | E62: 32.03177745 | F62: 27.57659935 | G62: 23.12095126 | H62: 22.1882891
A66: T[s] nach VDI 2081 | E66: Nachhallzeit | F66: Richtungsfaktor | G66: Raumvolumen | H66: äqu. Absorptionsfläche
A67: Raumart | C67: s | E67: t | F67: Q | G67: V | H67: A
A68: Einzelbüro | C68: 0.5 | E68: s | G68: m³ | H68: m²Sabine
A69: Großraumbüro | C69: 0.5 | D69: =Auslegung!D31 -> Einzelbüro | E69: =VLOOKUP(D69,Lw!$A$68:$C$91,3,FALSE) -> 0.5 | F69: 4 | G69: =Auslegung!D27*Auslegung!D29*Auslegung!D30 -> 45 | H69: =0.163*G69/E69 -> 14.67
A70: Werkstätten | C70: 1.5
A71: Ruheraum, Pausenraum | C71: 1
A72: Untersuchungsraum Krankenhaus | C72: 2
A73: Rundfunk-, Fernsehstudio | C73: 0.5
A74: Chemielabor | C74: 2
A75: Wasch- und WC-Raum, Umkleide | C75: 2
A76: Schwimmbad | C76: 2
A77: EDV-Raum | C77: 1.5
A78: Konzertsaal | C78: 1.5
A79: Lesesaal | C79: 1
A80: Museum | C80: 1.5
A81: Küche | C81: 1.5
A82: Theater, Kino | C82: 1
A83: Klassen- Seminarraum | C83: 1
A84: Gaststätte | C84: 1
A85: kein Typ | C85: x
A86: Konferenzraum | C86: 1
A87: Hotelzimmer | C87: 0.5
A88: Hörsaal | C88: 1
A89: Bettenzimmer Krankenhaus | C89: 1
A90: Verkaufsraum | C90: 1
A91: Sporthalle | C91: 2

Sheet Dt (hidden)
A1: Frequenzband | B1: fm_Okt | C1: [Hz] | D1: 63 | E1: 125 | F1: 250 | G1: 500 | H1: 1000 | I1: 2000 | J1: 4000 | K1: 8000
C2: =Grunddaten!C4 -> LBQ100
C3: =Grunddaten!C5 -> LBQ150
C4: =Grunddaten!C6 -> LBQ600x600
C5: =Grunddaten!C7 -> 0
C6: =Grunddaten!C8 -> 0
C7: =Grunddaten!C9 -> 0
C8: =Grunddaten!C10 -> 0
C9: =Grunddaten!C11 -> 0
D10: 2 | E10: 3 | F10: 4 | G10: 5 | H10: 6 | I10: 7 | J10: 8 | K10: 9
C12: =Grunddaten!C22 -> LBQ150 | D12: =VLOOKUP($C$12,$C$2:$K$9,D10,FALSE) -> 0 | E12: =VLOOKUP($C$12,$C$2:$K$9,E10,FALSE) -> 0 | F12: 0 | G12: 0 | H12: 0 | I12: 0 | J12: 0 | K12: 0

Sheet v_x (hidden)
A1: mittlere Untertemperatur | B1: DTm | C1: K | D1: =Auslegung!D24-Auslegung!D23 -> 2
A3: Berechnung Geschwindigkeit entlang der Lauflänge
A5: vx = K1 * x^(K2)
A7: Berechnung Konstanten
A9: K1 | B9: =IF($D$1>=0,0.667*Auslegung!$D$90+0.0667,"") -> 0.2519777778 | D9: y = 0,667x + 0,0667
A10: K2 | B10: =-1.9587*Auslegung!$D$90-0.0348 -> -0.5788833333 | D10: y = -1,9587x - 0,0348 | G10: Basis: | H10: F:\daten_EK\EMCOAIR\LBQ\Auswertung_Strahlgeschwindigkeit_130312_3
A12: Lauflänge | B12: Geschwindigkeit
A13: x | B13: v
A14: m | B14: m/s
A15: 0.5 | B15: =B16 -> 0.2519777778
A16: 1 | B16: =$B$9*A16^$B$10 -> 0.2519777778
A17: 1.5 | B17: 0.1992626706
A18: 2 | B18: 0.1686945275
A19: 2.5 | B19: 0.1482522874
A20: 3 | B20: 0.1334027245
A21: 3.5 | B21: 0.1220141836
A22: =Auslegung!$D$29 -> 5 | B22: 0.09925220309
A25: Berechnung Turbulenzgrad entlang der Lauflänge
A27: TU= K1 * x^(K2)
A29: Berechnung Konstanten
D30: y = 30,802x + 10,561
A31: K1 | B31: =IF(D1>=0,30.802*Auslegung!$D$90+10.561,"") -> 19.11711111 | D31: y = 0,5698x - 0,7686
A32: K2 | B32: =0.5698*Auslegung!$D$90-0.7686 -> -0.6103222222 | G32: Basis: | H32: F:\daten_EK\EMCOAIR\LBQ\Auswertung_Strahlgeschwindigkeit_130312_3
A34: Lauflänge | B34: Turbulenzgrad | D34: R² = 0,3587
A35: x | B35: TU
A36: m | B36: %
A37: =A15 -> 0.5 | B37: =$B$31*A37^$B$32 -> 29.18418437
A38: =A16 -> 1 | B38: =$B$31*A38^$B$32 -> 19.11711111
A39: 1.5 | B39: 14.9262206
A40: 2 | B40: 12.52267093
A41: 2.5 | B41: 10.92825031
A42: 3 | B42: 9.7774265
A43: 3.5 | B43: 8.899496702
A44: 5 | B44: 7.158554538
A47: Berechnung Zugluftrisiko nach ISO 7730
A48: (34-tL)*(vx-0,05)^0,62*(0,37*vx*TU+3,14)
A50: Lauflänge | B50: Zugluftrisiko
A51: x | B51: DR
A52: m | B52: %
A53: =A15 -> 0.5 | B53: =(34-(Auslegung!$D$23))*(B15-0.05)^0.62*(0.37*B15*B37+3.14) -> 21.73962494
A54: =A16 -> 1 | B54: =(34-(Auslegung!$D$23))*(B16-0.05)^0.62*(0.37*B16*B38+3.14) -> 18.25821296
A55: 1.5 | B55: =(34-(Auslegung!$D$23))*(B17-0.05)^0.62*(0.37*B17*B39+3.14) -> 13.03957891
A56: 2 | B56: =(34-(Auslegung!$D$23))*(B18-0.05)^0.62*(0.37*B18*B40+3.14) -> 10.46196691
A57: 2.5 | B57: =(34-(Auslegung!$D$23))*(B19-0.05)^0.62*(0.37*B19*B41+3.14) -> 8.872792264
A58: 3 | B58: =(34-(Auslegung!$D$23))*(B20-0.05)^0.62*(0.37*B20*B42+3.14) -> 7.76519951
A59: 3.5 | B59: =(34-(Auslegung!$D$23))*(B21-0.05)^0.62*(0.37*B21*B43+3.14) -> 6.931377289
A60: 5 | B60: =(34-(Auslegung!$D$23))*(B22-0.05)^0.62*(0.37*B22*B44+3.14) -> 5.262005427

Sheet Eingabe (hidden)
C2: 1 | D2: Produktgruppe emcoair
D3: LBQ | E3: Artikel
E4: 100 | F4: Breite | G4: 100 mm
E5: 150 | G5: 150 mm
E6: 600 | G6: 600 mm
F7: 0500 | G7: Länge | H7: 500 - 2000 mm
H8: 600
G9: 1 | H9: Stutzenanzahl | I9: 1 Stutzen
G10: 2 | I10: 2 Stutzen
G11: 3 | I11: 3 Stutzen
H12: Z | I12: Rahmenprofil | J12: Z Profil
H13: L | J13: L Profil
I14: V | J14: Werkstoff Luftdurchlass | K14: Stahl verzinkt
I15: E | K15: Edelstahl V2A "1.4301"
I16: S | K16: Edelstahl V4A "1.4571"
J17: 7012 | K17: Oberfläche Luftdurchlass | L17: RAL 7012 matt
J18: xxxx | L18: RAL ****
J19: SSSS | L19: Sonderlackierung
K20: 1 | L20: Anschlusskasten | M20: mit Anschlusskasten
K21: 0 | M21: ohne Anschlusskasten
L22: V | M22: Werkstoff AK | N22: Stahl verzinkt
M23: V | N23: Werkstoff AK | O23: Stahl verzinkt
N24: 1 | O24: Drossel | P24: mit
N25: 0 | P25: ohne
O26: 1 | P26: integrierte Höhenverstellung | Q26: mit
O27: 0 | Q27: ohne
P28: 1 | Q28: Ausführung | R28: Einzelposition
P29: 2 | R29: Bandanfang
P30: 3 | R30: Bandmitte
P31: 4 | R31: Bandende
C35: =C2 -> 1 | D35: =D3 -> LBQ | E35: =E4 -> 100 | F35: =F7 -> 0500 | G35: =G9 -> 1 | H35: =H12 -> Z | I35: =I14 -> V | J35: =J17 -> 7012 | K35: =K20 -> 1 | L35: =L22 -> V | M35: =M23 -> V | N35: =N24 -> 1 | O35: =O26 -> 1 | P35: =P28 -> 1
C36: * Anschlusskasten mit Mengeneinstellung auf Anfrage | H36: ,
A40: Schwarz | B40: S
A41: weiß | B41: W
A42: naturfarbig eloxiert | B42: E6C0
A43: weiß (RAL 9010) bepulvert | B43: 9010
A44: ohne Drossel | B44: 0
A45: frontseitig bedienbare Drossel* | B45: 1
A46: 500 | B46: 0500
A47: 800 | B47: 0800
A48: 1000 | B48: 1000
A49: 1200 | B49: 1200
A50: Zuluft | B50: Z
A51: Abluft | B51: A
A52: Zuluft/Abluft-Kombination | B52: K

Sheet Dp (hidden)
A1: DP=K011*V^K012+K013*v^K014
A2: Breite | F2: Druckverlust
A3: Breite | B3: Konstante | F3: Dp
A4: mm | B4: K1 | C4: K2 | D4: K3 | E4: K4 | F4: Pa
A5: 100 | B5: 8.944215587e-05 | C5: 2.438113956 | D5: 1.797441099 | E5: 1.543544063 | F5: =B$5*Grunddaten!$E4^C$5+D$5*Grunddaten!$I4^E$5 -> 41.6948141
A6: 150 | B6: 0.0001568395946 | C6: 2.140652136 | D6: 0.9851855498 | E6: 2.021740655 | F6: =B$6*Grunddaten!$E5^C$6+D$6*Grunddaten!$I5^E$6 -> 35.89240457
A7: 600x600 | B7: 0.1680317406 | C7: 0.950018089 | D7: 0.09450987146 | E7: 3.011791713 | F7: =$B$7*Auslegung!D15^C7+$D$7*Grunddaten!I6^Dp!$E$7 -> 34.01276731
